fUSD/lending_fUSD_20251210
["ID","MTS","AMOUNT","RATE_DAILY","PERIOD"]
[398156532,1765407045587,-366.04983582,0.00036451,15]
[398156533,1765407045598,-133.95016418,0.00036451,15]
[398156534,1765407045607,-315.05134114,0.00036451,15]
[398156535,1765407045615,-500.0,0.00036451,15]
[398156536,1765407045624,-500.0,0.00036451,15]
[398156537,1765407045634,-500.0,0.00036451,15]
[398156538,1765407045643,-132.83489468,0.00036451,15]
[398156539,1765407045656,-367.16510532,0.00036451,15]
[398156540,1765407045665,-500.0,0.00036451,15]
[398156541,1765407045675,-360.9262876,0.00036451,15]
[398156542,1765407045687,-188.95860708,0.00036451,15]
[398156543,1765407045699,-311.04139292,0.00036451,15]
[398156544,1765407045710,-500.0,0.00036451,15]
[398156545,1765407045722,-500.0,0.00036451,15]
[398156546,1765407045734,-500.0,0.00036451,15]
[398156547,1765407045747,-500.0,0.00036451,15]
[398156548,1765407045756,-500.0,0.00036451,15]
[398156549,1765407045766,-500.0,0.00036451,15]
[398156550,1765407045782,-500.0,0.00036451,15]
[398156551,1765407045791,-180.22578546,0.00041095,60]
[398156552,1765407045802,-395.68282162,0.00041095,60]
[398156553,1765407045814,-104.31717838,0.00041095,60]
[398156554,1765407045823,-500.0,0.00041095,60]
[398156555,1765407045832,-500.0,0.00041095,60]
[398156556,1765407045843,-550.71,0.00041095,60]
[398156557,1765407045852,-500.0,0.00041095,60]
[398156558,1765407045862,-500.0,0.00041095,60]
[398156559,1765407045874,-500.0,0.00041095,60]
[398156560,1765407045884,-500.0,0.00041095,60]
[398156561,1765407045893,-500.0,0.00041095,60]
[398156562,1765407045905,-500.0,0.00041095,60]
[398156563,1765407045915,-511.00028095,0.00041095,60]
[398156564,1765407045926,-500.0,0.00041095,60]
[398156565,1765407045936,-500.0,0.00041095,60]
[398156566,1765407045945,-500.0,0.00041095,60]
[398156567,1765407045956,-500.0,0.00041095,60]
[398156568,1765407045966,-500.0,0.00041095,60]
[398156569,1765407045976,-500.0,0.00041095,60]
[398156570,1765407045986,-500.0,0.00041095,60]
[398156571,1765407045995,-503.36454911,0.00041095,60]
[398156572,1765407046005,-500.0,0.00041095,60]
[398156573,1765407046013,-500.0,0.00041095,60]
[398156574,1765407046023,-500.0,0.00041095,60]
[398156575,1765407046032,-502.58686375,0.00041095,60]
[398156576,1765407046041,-500.0,0.00041095,60]
[398156577,1765407046051,-500.0,0.00041095,15]
[398156578,1765407046061,-625.09,0.00041095,60]
[398156579,1765407046077,-500.0,0.00041095,60]
[398156580,1765407046087,-500.0,0.00041095,60]
[398156581,1765407046096,-500.0,0.00041095,60]
[398156582,1765407046221,-500.0,0.00041095,60]
[398156583,1765407046231,-500.0,0.00041095,60]
[398156584,1765407046239,-500.0,0.00041095,60]
[398156585,1765407046248,-500.0,0.00041095,60]
[398156586,1765407046270,-500.0,0.00041095,60]
[398156588,1765407046281,-500.0,0.00041095,60]
[398156590,1765407046292,-502.34542848,0.00041095,60]
[398156593,1765407046302,-500.0,0.00041095,60]
[398156595,1765407046312,-518.19012027,0.00041095,60]
[398156597,1765407046322,-500.0,0.00041095,60]
[398156599,1765407046331,-500.0,0.00041095,60]
[398156601,1765407046341,-500.0,0.00041095,60]
[398156603,1765407046351,-500.0,0.00041095,60]
[398156605,1765407046362,-500.0,0.00041095,60]
[398156607,1765407046372,-500.0,0.00041095,60]
[398156609,1765407046381,-500.0,0.00041095,60]
[398156611,1765407046391,-421.17499672,0.00041095,60]
[398156613,1765407046401,-500.0,0.00041095,60]
[398156615,1765407046410,-474.41032334,0.00041095,60]
[398156617,1765407046420,-500.0,0.00041095,60]
[398156619,1765407046430,-500.0,0.00041095,60]
[398156621,1765407046440,-500.0,0.00041095,60]
[398156623,1765407046449,-500.0,0.00041095,60]
[398156626,1765407046459,-500.0,0.00041095,60]
[398156628,1765407046468,-500.0,0.00041095,60]
[398156630,1765407046478,-501.08202753,0.00041095,60]
[398156632,1765407046487,-500.0,0.00041095,60]
[398156634,1765407046496,-502.10976232,0.00041095,60]
[398156636,1765407046506,-500.0,0.00041095,60]
[398156638,1765407046515,-399.96054994,0.00041095,60]
[398156640,1765407046525,-500.0,0.00041095,60]
[398156642,1765407046535,-500.0,0.00041095,60]
[398156644,1765407046544,-500.0,0.00041095,60]
[398156646,1765407046553,-500.0,0.00041095,60]
[398156648,1765407046563,-500.0,0.00041095,60]
[398156650,1765407046574,-595.66763112,0.00041095,60]
[398156652,1765407046584,-500.0,0.00041095,60]
[398156654,1765407046593,-500.0,0.00041095,60]
[398156657,1765407046607,-500.0,0.00041095,60]
[398156659,1765407046617,-500.0,0.00041095,60]
[398156661,1765407046626,-500.0,0.00041095,60]
[398156663,1765407046636,-500.0,0.00041095,60]
[398156665,1765407046645,-525.16262286,0.00041095,60]
[398156667,1765407046655,-276.0241099,0.00041095,60]
[398156670,1765407046672,-223.9758901,0.00041095,60]
[398156672,1765407046682,-500.0,0.00041095,60]
[398156674,1765407046693,-500.0,0.00041095,60]
[398156676,1765407046703,-286.15937787,0.00041095,60]
[398156678,1765407046715,-213.84062213,0.00041095,60]
[398156680,1765407046724,-500.0,0.00041095,60]
[398156683,1765407046734,-500.0,0.00041095,60]
[398156685,1765407046743,-500.0,0.00041095,60]
[398156687,1765407046752,-500.0,0.00041095,60]
[398156689,1765407046762,-500.0,0.00041095,60]
[398156691,1765407046771,-500.0,0.00041095,60]
[398156693,1765407046781,-500.0,0.00041095,60]
[398156695,1765407046791,-41.69961473,0.00041095,60]
[398156697,1765407046803,-458.30038527,0.00041095,60]
[398156699,1765407046813,-500.0,0.00041095,60]
[398156701,1765407046822,-376.91961473,0.00041095,60]
[398156761,1765407047377,-702.42,0.0004,30]
[398156763,1765407047388,-6182.87468006,0.00040086,15]
[398156765,1765407047398,-123.08038527,0.00041095,60]
[398156767,1765407047407,-500.0,0.00041095,60]
[398156770,1765407047421,-500.0,0.00041095,60]
[398156772,1765407047430,-500.0,0.00041095,60]
[398156773,1765407047439,-500.0,0.00041095,60]
[398156774,1765407047448,-500.0,0.00041095,60]
[398156775,1765407047457,-522.3,0.00041095,60]
[398156776,1765407047467,-500.0,0.00041095,60]
[398156777,1765407047476,-500.0,0.00041095,60]
[398156778,1765407047486,-500.0,0.00041095,60]
[398156779,1765407047495,-500.0,0.00041095,60]
[398156780,1765407047504,-500.0,0.00041095,60]
[398156782,1765407047513,-500.0,0.00041095,60]
[398156784,1765407047523,-500.0,0.00041095,60]
[398156786,1765407047533,-500.0,0.00041095,60]
[398156789,1765407047544,-500.0,0.00041095,60]
[398156791,1765407047553,-500.0,0.00041095,60]
[398156793,1765407047562,-616.5,0.00041095,60]
[398156795,1765407047572,-241.45,0.00041095,60]
[398156797,1765407047581,-500.0,0.00041095,60]
[398156799,1765407047591,-500.0,0.00041095,60]
[398156801,1765407047601,-501.52186608,0.00041095,60]
[398156803,1765407047615,-500.0,0.00041095,60]
[398156806,1765407047625,-500.0,0.00041095,60]
[398156808,1765407047635,-500.0,0.00041095,60]
[398156810,1765407047644,-500.0,0.00041095,60]
[398156812,1765407047654,-500.0,0.00041095,60]
[398156814,1765407047664,-500.0,0.00041095,60]
[398156816,1765407047674,-344.89197926,0.00041095,60]
[398156818,1765407047684,-500.0,0.00041095,60]
[398156820,1765407047694,-500.0,0.00041095,60]
[398156822,1765407047703,-500.0,0.00041095,60]
[398156824,1765407047713,-500.0,0.00041095,60]
[398156826,1765407047723,-500.0,0.00041095,60]
[398156828,1765407047732,-500.0,0.00041095,60]
[398156830,1765407047742,-526.98975163,0.00041095,60]
[398156832,1765407047751,-500.0,0.00041095,60]
[398156834,1765407047760,-500.0,0.00041095,60]
[398156836,1765407047770,-500.0,0.00041095,60]
[398156838,1765407047779,-500.0,0.00041095,60]
[398156840,1765407047788,-500.0,0.00041095,60]
[398156843,1765407047798,-500.0,0.00041095,14]
[398156845,1765407047811,-500.0,0.00041095,60]
[398156847,1765407047821,-500.99532924,0.00041095,60]
[398156849,1765407047830,-500.0,0.00041095,60]
[398156851,1765407047840,-500.0,0.00041095,60]
[398156853,1765407047849,-409.35364412,0.00041095,60]
[398156855,1765407047859,-500.0,0.00041095,60]
[398156857,1765407047868,-159.10895044,0.00041095,60]
[398156859,1765407047878,-500.0,0.00041095,60]
[398156861,1765407047887,-500.0,0.00041095,60]
[398156863,1765407047897,-500.0,0.00041095,2]
[398156865,1765407047908,-500.0,0.00041095,60]
[398156868,1765407047917,-500.0,0.00041095,60]
[398156870,1765407047927,-500.0,0.00041095,60]
[398156872,1765407047937,-500.0,0.00041095,60]
[398156874,1765407047946,-500.0,0.00041095,60]
[398156876,1765407047956,-500.0,0.00041095,60]
[398156878,1765407047966,-500.0,0.00041095,60]
[398156880,1765407047976,-500.0,0.00041095,60]
[398156882,1765407047986,-500.0,0.00041095,60]
[398156884,1765407047998,-500.0,0.00041095,60]
[398156886,1765407048008,-500.0,0.00041095,60]
[398156888,1765407048017,-500.0,0.00041095,60]
[398156890,1765407048028,-500.0,0.00041095,60]
[398156892,1765407048038,-500.0,0.00041095,60]
[398156894,1765407048047,-537.96870976,0.00041095,60]
[398156895,1765407048057,-500.32381205,0.00041095,60]
[398156896,1765407048071,-500.0,0.00041095,60]
[398156899,1765407048082,-500.0,0.00041095,60]
[398156900,1765407048092,-501.10609767,0.00041095,60]
[398156901,1765407048103,-385.8655705,0.00041095,60]
[398156902,1765407048113,-500.0,0.00041095,60]
[398156903,1765407048122,-500.0,0.00041095,60]
[398156904,1765407048132,-500.0,0.00041095,60]
[398156905,1765407048142,-500.0,0.00041095,60]
[398156906,1765407048152,-500.0,0.00041095,60]
[398156907,1765407048161,-500.0,0.00041095,60]
[398156908,1765407048171,-500.0,0.00041095,60]
[398156909,1765407048181,-484.19404955,0.00041095,60]
[398156910,1765407048190,-500.0,0.00041095,60]
[398156911,1765407048199,-500.0,0.00041095,60]
[398156912,1765407048210,-500.0,0.00041095,60]
[398156913,1765407048219,-500.0,0.00041095,60]
[398156914,1765407048228,-500.0,0.00041095,60]
[398156915,1765407048237,-500.0,0.00041095,60]
[398156916,1765407048247,-500.0,0.00041095,60]
[398156917,1765407048256,-500.0,0.00041095,30]
[398156918,1765407048267,-500.0,0.00041095,60]
[398156919,1765407048276,-500.0,0.00041095,60]
[398156920,1765407048286,-500.0,0.00041095,60]
[398156921,1765407048296,-500.0,0.00041095,60]
[398156922,1765407048305,-500.0,0.00041095,60]
[398156923,1765407048315,-500.0,0.00041095,60]
[398156924,1765407048324,-500.0,0.00041095,60]
[398156925,1765407048333,-500.0,0.00041095,60]
[398156926,1765407048343,-500.0,0.00041095,60]
[398156927,1765407048352,-500.0,0.00041095,60]
[398156928,1765407048362,-500.0,0.00041095,60]
[398156929,1765407048371,-500.0,0.00041095,60]
[398156930,1765407048380,-500.0,0.00041095,60]
[398156931,1765407048399,-500.0,0.00041095,60]
[398156932,1765407048410,-504.65072179,0.00041095,60]
[398156933,1765407048419,-500.0,0.00041095,60]
[398156934,1765407048429,-643.61525485,0.00041095,60]
[398156935,1765407048438,-500.0,0.00041095,60]
[398156936,1765407048448,-509.61856962,0.00041095,60]
[398156937,1765407048457,-585.66,0.00041095,60]
[398156938,1765407048467,-500.0,0.00041095,60]
[398156939,1765407048476,-159.12680702,0.00041095,60]
[398156940,1765407048486,-500.0,0.00041095,60]
[398156941,1765407048496,-500.0,0.00041095,60]
[398156942,1765407048505,-500.0,0.00041095,60]
[398156943,1765407048515,-500.0,0.00041095,60]
[398156944,1765407048526,-500.0,0.00041095,60]
[398156945,1765407048536,-500.0,0.00041095,60]
[398156946,1765407048545,-500.0,0.00041095,60]
[398156947,1765407048554,-500.0,0.00041095,60]
[398156948,1765407048563,-500.0,0.00041095,60]
[398156949,1765407048573,-500.0,0.00041095,60]
[398156950,1765407048583,-500.0,0.00041095,60]
[398156951,1765407048593,-500.0,0.00041095,60]
[398156952,1765407048603,-500.0,0.00041095,60]
[398156953,1765407048800,-500.0,0.00041095,60]
[398156954,1765407048810,-500.0,0.00041095,60]
[398156955,1765407048820,-500.0,0.00041095,60]
[398156956,1765407048829,-500.0,0.00041095,60]
[398156957,1765407048838,-501.47038207,0.00041095,60]
[398156958,1765407048848,-500.0,0.00041095,60]
[398156959,1765407048857,-500.15049154,0.00041095,60]
[398156960,1765407048867,-500.0,0.00041095,60]
[398156961,1765407048876,-500.0,0.00041095,60]
[398156962,1765407048885,-500.0,0.00041095,60]
[398156963,1765407048894,-500.0,0.00041095,60]
[398156964,1765407048905,-500.0,0.00041095,60]
[398156965,1765407048914,-500.0,0.00041095,60]
[398156966,1765407048924,-500.0,0.00041095,60]
[398156967,1765407048934,-500.12581602,0.00041095,60]
[398156968,1765407048944,-500.0,0.00041095,60]
[398156969,1765407048954,-500.36765643,0.00041095,60]
[398156970,1765407048963,-500.0,0.00041095,60]
[398156971,1765407048973,-500.0,0.00041095,60]
[398156972,1765407048982,-500.0,0.00041095,60]
[398156973,1765407048992,-589.69631298,0.00041095,60]
[398156974,1765407049001,-500.0,0.00041095,60]
[398156975,1765407049010,-500.92133189,0.00041095,60]
[398156976,1765407049020,-500.0,0.00041095,60]
[398156977,1765407049031,-501.42722231,0.00041095,60]
[398156978,1765407049040,-500.0,0.00041095,60]
[398156979,1765407049050,-500.0,0.00041095,60]
[398156980,1765407049064,-500.0,0.00041095,60]
[398156981,1765407049076,-500.0,0.00041095,60]
[398156982,1765407049086,-500.0,0.00041095,60]
[398156983,1765407049095,-500.0,0.00041095,60]
[398156984,1765407049108,-500.0,0.00041095,60]
[398156985,1765407049117,-500.0,0.00041095,60]
[398156986,1765407049127,-500.0,0.00041095,60]
[398156987,1765407049137,-500.0,0.00041095,60]
[398156988,1765407049147,-500.0,0.00041095,60]
[398156989,1765407049156,-500.67446148,0.00041095,60]
[398156990,1765407049166,-500.0,0.00041095,60]
[398156991,1765407049175,-481.45328237,0.00041095,60]
[398156992,1765407049184,-500.0,0.00041095,60]
[398156993,1765407049193,-500.0,0.00041095,60]
[398156994,1765407049202,-500.0,0.00041095,60]
[398156995,1765407049211,-500.0,0.00041095,60]
[398156996,1765407049220,-500.0,0.00041095,60]
[398156997,1765407049230,-500.0,0.00041095,60]
[398156998,1765407049239,-500.0,0.00041095,60]
[398156999,1765407049248,-500.0,0.00041095,60]
[398157000,1765407049257,-320.69298647,0.00041095,60]
[398157001,1765407049270,-542.09148356,0.00041095,60]
[398157002,1765407049279,-500.0,0.00041095,60]
[398157003,1765407049289,-500.0,0.00041095,60]
[398157004,1765407049298,-500.0,0.00041095,60]
[398157005,1765407049308,-500.0,0.00041095,60]
[398157006,1765407049317,-501.68900793,0.00041095,60]
[398157007,1765407049326,-500.0,0.00041095,60]
[398157008,1765407049335,-500.0,0.00041095,60]
[398157009,1765407049344,-501.96087742,0.00041095,60]
[398157010,1765407049353,-500.0,0.00041095,60]
[398157011,1765407049362,-500.0,0.00041095,60]
[398157012,1765407049371,-500.0,0.00041095,60]
[398157013,1765407049381,-500.0,0.00041095,60]
[398157014,1765407049391,-500.0,0.00041095,60]
[398157015,1765407049401,-500.0,0.00041095,60]
[398157016,1765407049411,-500.0,0.00041095,60]
[398157017,1765407049420,-500.0,0.00041095,60]
[398157018,1765407049430,-500.0,0.00041095,60]
[398157019,1765407049439,-501.13200696,0.00041095,60]
[398157020,1765407049448,-500.0,0.00041095,60]
[398157021,1765407049460,-500.0,0.00041095,60]
[398157022,1765407049470,-500.0,0.00041095,60]
[398157023,1765407049479,-617.91277905,0.00041095,60]
[398157024,1765407049488,-500.0,0.00041095,60]
[398157025,1765407049497,-500.0,0.00041095,60]
[398157026,1765407049507,-500.0,0.00041095,60]
[398157027,1765407049516,-327.14917117,0.00041095,60]
[398157028,1765407049526,-500.0,0.00041095,60]
[398157029,1765407049535,-500.0,0.00041095,60]
[398157030,1765407049544,-500.0,0.00041095,60]
[398157031,1765407049553,-500.0,0.00041095,60]
[398157032,1765407049562,-248.51356883,0.00041095,60]
[398157033,1765407049716,-251.48643117,0.00041095,60]
[398157034,1765407049726,-500.0,0.00041095,60]
[398157035,1765407049735,-500.0,0.00041095,60]
[398157036,1765407049744,-500.0,0.00041095,60]
[398157037,1765407049753,-592.92775722,0.00041095,60]
[398157038,1765407049762,-500.0,0.00041095,60]
[398157039,1765407049771,-500.0,0.00041095,60]
[398157040,1765407049779,-120.26640066,0.00041095,60]
[398157041,1765407049791,-387.09659375,0.00041095,60]
[398157042,1765407049801,-15.53047894,0.00041095,60]
[398157043,1765407049810,-500.0,0.00041095,60]
[398157044,1765407049819,-500.0,0.00041095,60]
[398157045,1765407049828,-500.0,0.00041095,60]
[398157046,1765407049838,-500.0,0.00041095,60]
[398157047,1765407049847,-500.0,0.00041095,60]
[398157048,1765407049856,-500.0,0.00041095,60]
[398157049,1765407049865,-501.60399428,0.00041095,60]
[398157050,1765407049874,-500.0,0.00041095,60]
[398157051,1765407049884,-500.0,0.00041095,60]
[398157052,1765407049892,-439.10939759,0.00041095,60]
[398157053,1765407362769,250.0,0.000202,30]
[398157054,1765407499386,-250.0,0.00017,2]
[398157055,1765407499410,-300.0,0.00017486,2]
[398157056,1765407499434,-109.62983424,0.00017486,2]
[398157057,1765407604459,-85.37016576,0.00017486,2]
[398157058,1765407604484,-214.62983424,0.00017486,2]
[398157059,1765407606131,-160.8100472,0.00017486,2]
[398157060,1765407859443,-298.0,0.00017486,2]
[398157061,1765407859466,-195.0,0.00017486,2]
[398157062,1765407859487,-186.57435173,0.00017486,2]
[398157063,1765407861254,-113.42564827,0.00017486,2]
[398157064,1765407861277,-89.5993146,0.00017486,2]
[398157069,1765408204456,-298.0,0.00017486,2]
[398157070,1765408204480,-16.75192521,0.00017486,2]
[398157071,1765408206748,-18.20887875,0.00017486,2]
[398157072,1765408206773,-144.9873164,0.00017679,2]
[398157086,1765408232047,-155.0126836,0.00017679,2]
[398157088,1765408232056,-472.73081439,0.00017873,2]
[398157089,1765408232066,-500.0,0.00017973,2]
[398157090,1765408232075,-500.0,0.00017973,2]
[398157091,1765408232084,-2903.14970124,0.00018,2]
[398157092,1765408232094,-300.0,0.00018217,2]
[398157093,1765408232103,-500.0,0.00018521,2]
[398157094,1765408232112,-500.0,0.00018521,2]
[398157095,1765408232121,-282.0,0.00019233,2]
[398157096,1765408232131,-300.0,0.00019233,2]
[398157097,1765408232140,-1200.0,0.00019233,2]
[398157098,1765408232149,-300.0,0.00019235,2]
[398157099,1765408232159,-195.0,0.00019235,2]
[398157100,1765408232168,-2500.0,0.00019235,2]
[398157101,1765408232178,-300.0,0.00019235,2]
[398157102,1765408232188,-250.0,0.00019235,2]
[398157103,1765408232198,-195.0,0.00019235,2]
[398157104,1765408232210,-488.097884,0.00020784,2]
[398157105,1765408232219,-500.0,0.00020889,2]
[398157107,1765408232228,-1680.0,0.00021061,2]
[398157109,1765408232237,-500.0,0.00021497,2]
[398157110,1765408232247,-300.0,0.00021743,2]
[398157111,1765408232257,-151.0,0.00021744,2]
[398157112,1765408232266,-151.0,0.00021744,2]
[398157113,1765408232275,-151.0,0.00021744,2]
[398157114,1765408232285,-151.0,0.00021744,2]
[398157115,1765408232294,-151.0,0.00021744,2]
[398157116,1765408232304,-151.0,0.00021744,2]
[398157117,1765408232313,-151.0,0.00021744,2]
[398157118,1765408232322,-151.0,0.00021744,2]
[398157119,1765408232331,-151.0,0.00021744,2]
[398157120,1765408232341,-151.0,0.00021744,2]
[398157121,1765408232350,-151.0,0.00021744,2]
[398157122,1765408232359,-151.0,0.00021744,2]
[398157123,1765408232368,-151.0,0.00021744,2]
[398157124,1765408232377,-151.0,0.00021744,2]
[398157125,1765408232386,-151.0,0.00021744,2]
[398157127,1765408232395,-200.0,0.00021744,2]
[398157129,1765408232406,-151.0,0.00021744,2]
[398157131,1765408232417,-500.0,0.00021744,2]
[398157133,1765408232426,-151.0,0.00021744,2]
[398157135,1765408232440,-500.0,0.00021744,2]
[398157137,1765408232450,-151.0,0.00021744,2]
[398157139,1765408232459,-500.0,0.00021744,2]
[398157141,1765408232468,-151.0,0.00021744,2]
[398157142,1765408232477,-500.0,0.00021744,2]
[398157143,1765408232487,-151.0,0.00021744,2]
[398157144,1765408232496,-500.0,0.00021744,2]
[398157145,1765408232506,-500.0,0.00021744,2]
[398157146,1765408232518,-500.0,0.00021744,2]
[398157147,1765408232527,-500.0,0.00021744,2]
[398157148,1765408232536,-500.0,0.00021744,2]
[398157149,1765408232545,-500.0,0.00021744,2]
[398157150,1765408232555,-500.0,0.00021744,2]
[398157151,1765408232565,-500.0,0.00021744,2]
[398157152,1765408232574,-500.0,0.00021744,2]
[398157153,1765408232583,-500.0,0.00021744,2]
[398157154,1765408232592,-500.0,0.00021744,2]
[398157155,1765408232602,-500.0,0.00021744,2]
[398157156,1765408232612,-500.0,0.00021744,2]
[398157157,1765408232621,-500.0,0.00021744,2]
[398157158,1765408232631,-500.0,0.00021744,2]
[398157159,1765408232641,-500.0,0.00021744,2]
[398157160,1765408232651,-200.0,0.00021744,2]
[398157161,1765408232661,-198.0,0.00021744,2]
[398157162,1765408232671,-276.85563408,0.00021744,2]
[398157163,1765408232681,-500.0,0.00021744,2]
[398157164,1765408232690,-151.0,0.00021744,2]
[398157165,1765408232700,-151.0,0.00021744,2]
[398157166,1765408232710,-151.0,0.00021744,2]
[398157167,1765408232719,-151.0,0.00021744,2]
[398157168,1765408232728,-151.0,0.00021744,2]
[398157169,1765408232738,-151.0,0.00021744,2]
[398157170,1765408232747,-151.0,0.00021744,2]
[398157171,1765408232757,-151.0,0.00021744,2]
[398157172,1765408232768,-151.0,0.00021744,2]
[398157173,1765408232777,-151.0,0.00021744,2]
[398157174,1765408232786,-200.0,0.00021744,2]
[398157175,1765408232805,-151.0,0.00021744,2]
[398157176,1765408232815,-299.99,0.00021757,7]
[398157177,1765408232825,-480.8,0.00021757,2]
[398157178,1765408232835,-4954.96,0.00021757,2]
[398157179,1765408232845,-9141.04,0.00021757,2]
[398157180,1765408232855,-150.99,0.00021757,2]
[398157181,1765408232864,-9999.99,0.00021757,2]
[398157182,1765408232874,-1568.3,0.00021757,5]
[398157183,1765408232884,-200.0,0.00022292,2]
[398157184,1765408232893,-500.0,0.00022292,2]
[398157185,1765408232903,-200.0,0.00022292,2]
[398157186,1765408232913,-200.0,0.0002284,2]
[398157187,1765408232923,-500.0,0.0002284,2]
[398157188,1765408232932,-200.0,0.0002284,2]
[398157189,1765408232942,-628.0,0.0002295,2]
[398157190,1765408232951,-2351.0,0.00023062,2]
[398157191,1765408232962,-200.0,0.00023388,2]
[398157192,1765408232971,-500.0,0.00023388,2]
[398157193,1765408232981,-200.0,0.00023388,2]
[398157194,1765408232990,-960.0,0.00023896,2]
[398157195,1765408233000,-200.0,0.00023936,2]
[398157196,1765408233009,-500.0,0.00023936,2]
[398157197,1765408233020,-200.0,0.00023936,2]
[398157198,1765408233029,-500.0,0.00024168,2]
[398157199,1765408233039,-207.4,0.00024483,2]
[398157200,1765408233049,-200.0,0.00024484,2]
[398157201,1765408233058,-500.0,0.00024484,2]
[398157202,1765408233068,-200.0,0.00024484,2]
[398157203,1765408233078,-200.0,0.00025032,2]
[398157204,1765408233087,-500.0,0.00025032,2]
[398157205,1765408233097,-200.0,0.0002558,2]
[398157206,1765408233107,-627.04271784,0.0002558,2]
[398157207,1765408233117,-200.0,0.00026128,2]
[398157208,1765408233127,-391.0,0.00026146,2]
[398157209,1765408233137,-177.22565979,0.00026198,2]
[398157210,1765408233146,-200.0,0.00026676,2]
[398157211,1765408233156,-500.0,0.00026682,7]
[398157212,1765408233166,-215.0738,0.00027222,2]
[398157213,1765408233175,-200.0,0.00027224,2]
[398157214,1765408233185,-500.0,0.00027579,7]
[398157215,1765408233195,-200.0,0.00027772,2]
[398157216,1765408233205,-200.0,0.0002832,2]
[398157217,1765408233215,-218.0,0.00028704,2]
[398157218,1765408233224,-218.0,0.00029226,7]
[398157219,1765408233234,-223.0315306,0.00029961,2]
[398157220,1765408233243,-175.63,0.00030292,2]
[398157221,1765408233253,-500.0,0.00031632,7]
[398157222,1765408233263,-772.54,0.00031662,30]
[398157223,1765408233273,-500.0,0.00031789,7]
[398157224,1765408233283,-231.28369723,0.000327,2]
[398157225,1765408233293,-166.66,0.00032767,2]
[398157226,1765408233302,-2207.68660086,0.00033355,2]
[398157227,1765408233317,-2997.04339914,0.00033355,2]
[398157228,1765408233328,-500.0,0.00033621,7]
[398157229,1765408233337,-1868.35,0.00033797,2]
[398157230,1765408233351,-166.66,0.00033848,2]
[398157231,1765408233361,-999.0,0.0003405,3]
[398157232,1765408233370,-500.0,0.00034155,7]
[398157233,1765408233380,-2728.479,0.00034183,38]
[398157234,1765408233390,-178.048,0.00034183,38]
[398157235,1765408233400,-1000.0,0.000344,2]
[398157236,1765408233410,-166.66,0.0003493,2]
[398157237,1765408233420,-8371.91069587,0.00035267,2]
[398157238,1765408233433,-2064.90930413,0.00035267,2]
[398157239,1765408233445,-239.84119403,0.00035439,2]
[398157240,1765408233455,-192.56,0.00035921,2]
[398157241,1765408233465,-31.08969493,0.00036012,2]
[398157242,1765408233478,-135.57030507,0.00036012,2]
[398157243,1765408233487,-1000.0,0.00036016,2]
[398157244,1765408233667,-167.42969493,0.0003603,30]
[398157245,1765408233679,-332.57030507,0.0003603,30]